[Event "Live Chess"]
[Site "Chess.com"]
[Date "2023.05.21"]
[Round "-"]
[White "jagbama"]
[Black "fretle"]
[Result "0-1"]
[WhiteElo "1193"]
[BlackElo "1802"]
[TimeControl "300"]
[EndTime "8:26:15 PDT"]
[Termination "fretle won on time"]

1. e4 {[%clk 0:04:57.3]} 1... d5 {[%clk 0:04:58.9]} 2. Nc3 {[%clk 0:04:47.1]}
2... Nf6 {[%clk 0:04:49.7]} 3. e5 {[%clk 0:04:39.1]} 3... Ne4 {[%clk 0:04:41]}
4. Nxe4 {[%clk 0:04:31]} 4... dxe4 {[%clk 0:04:40.9]} 5. d4 {[%clk 0:04:28.3]}
5... exd3 {[%clk 0:04:35]} 6. Bxd3 {[%clk 0:04:20.5]} 6... c6 {[%clk 0:04:25.1]}
7. Nf3 {[%clk 0:04:12.9]} 7... g6 {[%clk 0:04:23.8]} 8. O-O {[%clk 0:04:09.7]}
8... Bg7 {[%clk 0:04:22.9]} 9. Bf4 {[%clk 0:04:07]} 9... O-O {[%clk 0:04:21.1]}
10. Qe2 {[%clk 0:03:42]} 10... Qb6 {[%clk 0:04:12]} 11. Rab1 {[%clk 0:03:30.8]}
11... Bg4 {[%clk 0:04:04.5]} 12. h3 {[%clk 0:03:23.1]} 12... Bxf3 {[%clk
0:03:58.8]} 13. Qxf3 {[%clk 0:03:16.8]} 13... e6 {[%clk 0:03:57.2]} 14. Bg5
{[%clk 0:03:09.7]} 14... Bxe5 {[%clk 0:03:52.4]} 15. Bf6 {[%clk 0:03:04.2]}
15... Bxf6 {[%clk 0:03:50.8]} 16. Qxf6 {[%clk 0:03:03]} 16... Nd7 {[%clk
0:03:50.1]} 17. Qg5 {[%clk 0:02:55.8]} 17... Nc5 {[%clk 0:03:44.8]} 18. Be2
{[%clk 0:02:23.8]} 18... Rad8 {[%clk 0:03:41.9]} 19. h4 {[%clk 0:02:17.3]} 19...
Rd5 {[%clk 0:03:40.3]} 20. Qg4 {[%clk 0:02:09.7]} 20... h5 {[%clk 0:03:37.6]}
21. Qg3 {[%clk 0:02:06.6]} 21... Ne4 {[%clk 0:03:31.4]} 22. Qe3 {[%clk
0:01:49.8]} 22... Qxe3 {[%clk 0:03:27.7]} 23. fxe3 {[%clk 0:01:48.5]} 23... Nd2
{[%clk 0:03:26.2]} 24. Bf3 {[%clk 0:01:46]} 24... Rc5 {[%clk 0:03:07]} 25. b4
{[%clk 0:01:37.3]} 25... Rxc2 {[%clk 0:03:04.5]} 26. Bd1 {[%clk 0:01:31.5]}
26... Rxa2 {[%clk 0:03:02.1]} 27. Bb3 {[%clk 0:01:17.8]} 27... Ra3 {[%clk
0:02:56.7]} 28. Rfd1 {[%clk 0:01:09.4]} 28... Rxb3 {[%clk 0:02:49.6]} 29. Rxb3
{[%clk 0:01:02.4]} 29... Nxb3 {[%clk 0:02:49.5]} 30. Rd3 {[%clk 0:01:00]} 30...
Nc1 {[%clk 0:02:46.7]} 31. Rd2 {[%clk 0:00:48.2]} 31... a5 {[%clk 0:02:32.4]}
32. bxa5 {[%clk 0:00:41.5]} 32... Nb3 {[%clk 0:02:31.3]} 33. Ra2 {[%clk
0:00:37]} 33... Ra8 {[%clk 0:02:28.9]} 34. Ra3 {[%clk 0:00:35.6]} 34... Nxa5
{[%clk 0:02:20.2]} 35. Kf2 {[%clk 0:00:33.7]} 35... b6 {[%clk 0:02:17.2]} 36.
Ke2 {[%clk 0:00:33]} 36... Rd8 {[%clk 0:02:15.5]} 37. e4 {[%clk 0:00:31.6]}
37... Rc8 {[%clk 0:02:10.5]} 38. Kf3 {[%clk 0:00:29.9]} 38... Kg7 {[%clk
0:02:08.9]} 39. Kf4 {[%clk 0:00:28.9]} 39... Rd8 {[%clk 0:02:07.4]} 40. g4
{[%clk 0:00:27.3]} 40... Rd4 {[%clk 0:02:01.7]} 41. g5 {[%clk 0:00:25.8]} 41...
c5 {[%clk 0:02:00.2]} 42. Ke3 {[%clk 0:00:22.2]} 42... f6 {[%clk 0:01:57.9]} 43.
Ra1 {[%clk 0:00:16.1]} 43... f5 {[%clk 0:01:50.9]} 44. e5 {[%clk 0:00:13]} 44...
Re4+ {[%clk 0:01:48.2]} 45. Kd3 {[%clk 0:00:10.2]} 45... Rxe5 {[%clk 0:01:48.1]}
46. Rb1 {[%clk 0:00:08.6]} 46... Rd5+ {[%clk 0:01:44]} 47. Ke3 {[%clk
0:00:06.2]} 47... Kf7 {[%clk 0:01:40]} 48. Rxb6 {[%clk 0:00:04.1]} 48... Nc4+
{[%clk 0:01:39.1]} 49. Kf4 {[%clk 0:00:03.1]} 49... Nxb6 {[%clk 0:01:39]} 0-1

[Event "Live Chess"]
[Site "Chess.com"]
[Date "2023.05.21"]
[Round "-"]
[White "LL220284LL"]
[Black "RichardABates"]
[Result "1/2-1/2"]
[WhiteElo "2235"]
[BlackElo "2186"]
[TimeControl "300"]
[EndTime "8:26:17 PDT"]
[Termination "Game drawn - insufficient material"]

1. e4 {[%clk 0:04:59.1]} 1... c5 {[%clk 0:04:58.6]} 2. Nf3 {[%clk 0:04:57.6]}
2... d6 {[%clk 0:04:57.6]} 3. d4 {[%clk 0:04:56.5]} 3... cxd4 {[%clk 0:04:56.2]}
4. Nxd4 {[%clk 0:04:56.4]} 4... Nf6 {[%clk 0:04:55.3]} 5. Nc3 {[%clk 0:04:56.1]}
5... a6 {[%clk 0:04:54.3]} 6. h3 {[%clk 0:04:55.8]} 6... e5 {[%clk 0:04:51.8]}
7. Nde2 {[%clk 0:04:54.9]} 7... h5 {[%clk 0:04:45.6]} 8. Bg5 {[%clk 0:04:53.1]}
8... Be7 {[%clk 0:04:42]} 9. Bxf6 {[%clk 0:04:51.3]} 9... Bxf6 {[%clk
0:04:40.7]} 10. Nd5 {[%clk 0:04:51.2]} 10... Nc6 {[%clk 0:04:34.7]} 11. Qd3
{[%clk 0:04:48.7]} 11... Bg5 {[%clk 0:04:18]} 12. g3 {[%clk 0:04:43.5]} 12... h4
{[%clk 0:04:13.2]} 13. f4 {[%clk 0:04:39.6]} 13... exf4 {[%clk 0:04:06.6]} 14.
gxf4 {[%clk 0:04:39.5]} 14... Be7 {[%clk 0:04:04.8]} 15. O-O-O {[%clk
0:04:37.9]} 15... Be6 {[%clk 0:03:52.7]} 16. Nec3 {[%clk 0:04:33]} 16... Bf6
{[%clk 0:03:39.7]} 17. Kb1 {[%clk 0:04:28.7]} 17... Bd4 {[%clk 0:03:30.9]} 18.
Bg2 {[%clk 0:04:23.1]} 18... Qa5 {[%clk 0:03:25.5]} 19. Rhe1 {[%clk 0:04:14.7]}
19... O-O {[%clk 0:03:16.4]} 20. f5 {[%clk 0:04:07.9]} 20... Bxc3 {[%clk
0:03:06.9]} 21. Nxc3 {[%clk 0:04:04.5]} 21... Nb4 {[%clk 0:03:02.8]} 22. Qxd6
{[%clk 0:03:58.5]} 22... Bxa2+ {[%clk 0:02:59.3]} 23. Kc1 {[%clk 0:03:57.9]}
23... Rad8 {[%clk 0:02:54.2]} 24. Qf4 {[%clk 0:03:51.5]} 24... Bb3 {[%clk
0:02:41.7]} 25. cxb3 {[%clk 0:03:26.2]} 25... Qa1+ {[%clk 0:02:36.5]} 26. Nb1
{[%clk 0:03:25.6]} 26... Rc8+ {[%clk 0:02:22.1]} 27. Kd2 {[%clk 0:03:24.5]}
27... Qxb2+ {[%clk 0:02:19.6]} 28. Ke3 {[%clk 0:03:23.5]} 28... Qxb3+ {[%clk
0:02:08.9]} 29. Kf2 {[%clk 0:03:21.3]} 29... Nd3+ {[%clk 0:02:06.6]} 30. Rxd3
{[%clk 0:03:20.2]} 30... Qxd3 {[%clk 0:02:05.6]} 31. Kg1 {[%clk 0:03:17.4]}
31... Rc2 {[%clk 0:01:59.2]} 32. e5 {[%clk 0:03:13.9]} 32... Qg3 {[%clk
0:01:41.3]} 33. Qxg3 {[%clk 0:03:11.7]} 33... hxg3 {[%clk 0:01:40]} 34. Bxb7
{[%clk 0:03:10.4]} 34... Rb8 {[%clk 0:01:34.6]} 35. Be4 {[%clk 0:02:59.8]} 35...
Rc5 {[%clk 0:01:19.5]} 36. e6 {[%clk 0:02:58]} 36... Re5 {[%clk 0:01:16]} 37.
exf7+ {[%clk 0:02:54.7]} 37... Kxf7 {[%clk 0:01:14]} 38. Nc3 {[%clk 0:02:54.3]}
38... Rbe8 {[%clk 0:01:02.8]} 39. Kg2 {[%clk 0:02:47.4]} 39... Rc5 {[%clk
0:00:54.8]} 40. Re3 {[%clk 0:02:41.7]} 40... a5 {[%clk 0:00:50.5]} 41. Kxg3
{[%clk 0:02:34.1]} 41... Rxf5 {[%clk 0:00:47]} 42. Bd5+ {[%clk 0:02:28.8]} 42...
Rxd5 {[%clk 0:00:42.6]} 43. Nxd5 {[%clk 0:02:27.5]} 43... Rxe3+ {[%clk
0:00:35.8]} 44. Nxe3 {[%clk 0:02:27.4]} 44... a4 {[%clk 0:00:34.6]} 45. Nc4
{[%clk 0:02:22]} 45... Kf6 {[%clk 0:00:31.3]} 46. Kf4 {[%clk 0:02:21]} 46... Kg6
{[%clk 0:00:29.9]} 47. Kg4 {[%clk 0:02:16.6]} 47... Kh6 {[%clk 0:00:28.4]} 48.
Na3 {[%clk 0:02:15.8]} 48... Kg6 {[%clk 0:00:26.4]} 49. h4 {[%clk 0:02:15.4]}
49... Kf6 {[%clk 0:00:24.5]} 50. h5 {[%clk 0:02:14.4]} 50... Kf7 {[%clk
0:00:20.8]} 51. Kg5 {[%clk 0:02:13.7]} 51... Kf8 {[%clk 0:00:16.7]} 52. Kg6
{[%clk 0:02:12.8]} 52... Kg8 {[%clk 0:00:15.9]} 53. Kf5 {[%clk 0:02:04.8]} 53...
Kh7 {[%clk 0:00:14.6]} 54. Kg5 {[%clk 0:02:04.7]} 54... Kg8 {[%clk 0:00:13.6]}
55. Nb5 {[%clk 0:02:04]} 55... Kh8 {[%clk 0:00:12]} 56. Kg4 {[%clk 0:02:03.5]}
56... Kh7 {[%clk 0:00:10.9]} 57. Kh4 {[%clk 0:02:02.9]} 57... Kh6 {[%clk
0:00:09.7]} 58. Nd6 {[%clk 0:02:00.6]} 58... g6 {[%clk 0:00:08.6]} 59. Nf7+
{[%clk 0:01:59.5]} 59... Kg7 {[%clk 0:00:07.5]} 60. hxg6 {[%clk 0:01:58]} 60...
Kxg6 {[%clk 0:00:06.6]} 61. Ne5+ {[%clk 0:01:57.9]} 61... Kf5 {[%clk 0:00:05.7]}
62. Nc4 {[%clk 0:01:57.8]} 62... Ke4 {[%clk 0:00:05.1]} 63. Kg4 {[%clk
0:01:56.5]} 63... Kd4 {[%clk 0:00:05]} 64. Na3 {[%clk 0:01:55.8]} 64... Kc3
{[%clk 0:00:04.1]} 65. Kf3 {[%clk 0:01:55.1]} 65... Kb3 {[%clk 0:00:04]} 66. Nb5
{[%clk 0:01:54.3]} 66... a3 {[%clk 0:00:02.7]} 67. Nxa3 {[%clk 0:01:53.8]}
1/2-1/2

[Event "Live Chess"]
[Site "Chess.com"]
[Date "2023.05.21"]
[Round "-"]
[White "robotking06"]
[Black "HonestJoe1"]
[Result "0-1"]
[WhiteElo "327"]
[BlackElo "2094"]
[TimeControl "300"]
[EndTime "8:26:36 PDT"]
[Termination "HonestJoe1 won by resignation"]

1. e4 {[%clk 0:04:59.2]} 1... c5 {[%clk 0:04:57.4]} 2. d4 {[%clk 0:04:54.1]}
2... cxd4 {[%clk 0:04:56.4]} 3. Qxd4 {[%clk 0:04:52.4]} 3... Nc6 {[%clk
0:04:54.5]} 4. Qd5 {[%clk 0:04:50.3]} 4... Nf6 {[%clk 0:04:51.8]} 5. Qf5 {[%clk
0:04:46.2]} 5... d5 {[%clk 0:04:47.5]} 6. Qf3 {[%clk 0:04:40.9]} 6... dxe4
{[%clk 0:04:44.3]} 7. Qd3 {[%clk 0:04:35.2]} 7... exd3 {[%clk 0:04:42.8]} 8.
Bxd3 {[%clk 0:04:33.4]} 8... e5 {[%clk 0:04:39.7]} 9. Bf5 {[%clk 0:04:31]} 9...
Bxf5 {[%clk 0:04:38]} 10. Nf3 {[%clk 0:04:28.8]} 10... e4 {[%clk 0:04:31.8]} 11.
g3 {[%clk 0:04:25.6]} 0-1

[Event "Live Chess"]
[Site "Chess.com"]
[Date "2023.05.21"]
[Round "-"]
[White "LiamClery2020"]
[Black "EdenHazard8"]
[Result "0-1"]
[WhiteElo "2000"]
[BlackElo "1937"]
[TimeControl "300"]
[EndTime "8:26:39 PDT"]
[Termination "EdenHazard8 won by resignation"]

1. e4 {[%clk 0:04:58.4]} 1... c6 {[%clk 0:04:57.8]} 2. d4 {[%clk 0:04:56.4]}
2... d5 {[%clk 0:04:57.7]} 3. e5 {[%clk 0:04:53.5]} 3... c5 {[%clk 0:04:56.4]}
4. dxc5 {[%clk 0:04:50.7]} 4... e6 {[%clk 0:04:55.4]} 5. a3 {[%clk 0:04:50.2]}
5... Bxc5 {[%clk 0:04:53.9]} 6. b4 {[%clk 0:04:49.4]} 6... Bb6 {[%clk
0:04:53.4]} 7. Bb2 {[%clk 0:04:48.8]} 7... a5 {[%clk 0:04:52.5]} 8. b5 {[%clk
0:04:47.7]} 8... Nd7 {[%clk 0:04:49.1]} 9. Nf3 {[%clk 0:04:46.3]} 9... Ne7
{[%clk 0:04:48.2]} 10. Bd3 {[%clk 0:04:45.3]} 10... Nc5 {[%clk 0:04:46.8]} 11.
O-O {[%clk 0:04:32]} 11... Nxd3 {[%clk 0:04:45.7]} 12. Qxd3 {[%clk 0:04:31.4]}
12... O-O {[%clk 0:04:44.5]} 13. a4 {[%clk 0:04:27.9]} 13... Nf5 {[%clk
0:04:39.8]} 14. Nbd2 {[%clk 0:04:25.2]} 14... Bd7 {[%clk 0:04:38.4]} 15. Rfe1
{[%clk 0:04:23.2]} 15... Rc8 {[%clk 0:04:35.9]} 16. Rac1 {[%clk 0:04:22]} 16...
Qe7 {[%clk 0:04:34.8]} 17. c4 {[%clk 0:04:15.8]} 17... dxc4 {[%clk 0:04:31.7]}
18. Nxc4 {[%clk 0:04:14.4]} 18... Bc5 {[%clk 0:04:30.7]} 19. Nxa5 {[%clk
0:04:10.8]} 19... Bb4 {[%clk 0:04:23.6]} 20. Bc3 {[%clk 0:03:51]} 20... Rxc3
{[%clk 0:04:21.7]} 21. Rxc3 {[%clk 0:03:43.8]} 21... Bxa5 {[%clk 0:04:20.5]} 22.
Rec1 {[%clk 0:03:37.1]} 22... Bxc3 {[%clk 0:04:18.7]} 23. Qxc3 {[%clk 0:03:37]}
23... Rd8 {[%clk 0:04:17.3]} 24. Rd1 {[%clk 0:03:33.1]} 24... Be8 {[%clk
0:04:14.9]} 25. Rc1 {[%clk 0:03:30.4]} 25... Qd7 {[%clk 0:04:09.5]} 26. h3
{[%clk 0:03:28.2]} 26... Nd4 {[%clk 0:04:08]} 27. Nxd4 {[%clk 0:03:21.4]} 27...
Qxd4 {[%clk 0:04:07.9]} 28. Qc7 {[%clk 0:03:20.8]} 28... Rd5 {[%clk 0:04:01.5]}
29. Qe7 {[%clk 0:03:16.6]} 29... Rd8 {[%clk 0:03:54.2]} 30. Rc7 {[%clk
0:03:10.9]} 30... Qa1+ {[%clk 0:03:48.3]} 31. Kh2 {[%clk 0:03:09.9]} 31... Qxe5+
{[%clk 0:03:47.8]} 32. g3 {[%clk 0:03:08.6]} 32... Qf6 {[%clk 0:03:43.2]} 33.
Qc5 {[%clk 0:03:06.2]} 33... Rd2 {[%clk 0:03:37.6]} 34. Kg1 {[%clk 0:03:03.1]}
34... Qf3 {[%clk 0:03:31.5]} 0-1

[Event "Live Chess"]
[Site "Chess.com"]
[Date "2023.05.21"]
[Round "-"]
[White "slava_ukr"]
[Black "AyannaTang"]
[Result "1-0"]
[WhiteElo "2342"]
[BlackElo "230"]
[TimeControl "300"]
[EndTime "8:26:40 PDT"]
[Termination "slava_ukr won by checkmate"]

1. e4 {[%clk 0:04:59]} 1... e5 {[%clk 0:04:54.7]} 2. Nf3 {[%clk 0:04:57.6]} 2...
d5 {[%clk 0:04:49.9]} 3. exd5 {[%clk 0:04:55]} 3... e4 {[%clk 0:04:47.7]} 4. Qe2
{[%clk 0:04:52.3]} 4... Qxd5 {[%clk 0:04:41.9]} 5. Nc3 {[%clk 0:04:50.2]} 5...
Qf5 {[%clk 0:04:36.4]} 6. Qxe4+ {[%clk 0:04:44.1]} 6... Qxe4+ {[%clk 0:04:34.1]}
7. Nxe4 {[%clk 0:04:43.6]} 7... Nf6 {[%clk 0:04:24]} 8. Nxf6+ {[%clk 0:04:42]}
8... gxf6 {[%clk 0:04:22.6]} 9. g3 {[%clk 0:04:33.6]} 9... Bf5 {[%clk
0:04:14.8]} 10. d3 {[%clk 0:04:32]} 10... Bc5 {[%clk 0:04:08.7]} 11. Bg2 {[%clk
0:04:30.7]} 11... Nc6 {[%clk 0:03:43.7]} 12. O-O {[%clk 0:04:28.9]} 12... O-O-O
{[%clk 0:03:40.9]} 13. Be3 {[%clk 0:04:25.3]} 13... Bxe3 {[%clk 0:03:39.3]} 14.
fxe3 {[%clk 0:04:24.3]} 14... Rhe8 {[%clk 0:03:34.6]} 15. e4 {[%clk 0:04:05.7]}
15... Bg4 {[%clk 0:03:27.1]} 16. h3 {[%clk 0:03:58.2]} 16... Bxf3 {[%clk
0:03:26]} 17. Rxf3 {[%clk 0:03:56.8]} 17... Nd4 {[%clk 0:03:19.8]} 18. Rf2
{[%clk 0:03:55.9]} 18... f5 {[%clk 0:02:58.4]} 19. exf5 {[%clk 0:03:47.5]} 19...
Rd6 {[%clk 0:02:44.9]} 20. c3 {[%clk 0:03:43]} 20... Nb5 {[%clk 0:02:38.3]} 21.
a4 {[%clk 0:03:35.7]} 21... Nd4 {[%clk 0:02:25.5]} 22. cxd4 {[%clk 0:03:32]}
22... Rxd4 {[%clk 0:02:24.2]} 23. Be4 {[%clk 0:03:30.3]} 23... Rg8 {[%clk
0:02:01.2]} 24. Kg2 {[%clk 0:03:27.5]} 24... Rd6 {[%clk 0:01:54.7]} 25. Kf3
{[%clk 0:03:22.3]} 25... Rgd8 {[%clk 0:01:46.2]} 26. Kf4 {[%clk 0:03:17.6]}
26... Rg8 {[%clk 0:01:41.2]} 27. Rc1 {[%clk 0:03:13]} 27... f6 {[%clk
0:01:35.6]} 28. Rc5 {[%clk 0:03:09.5]} 28... Rd7 {[%clk 0:01:30.3]} 29. Bd5
{[%clk 0:03:05.7]} 29... Rgg7 {[%clk 0:01:22.8]} 30. Be6 {[%clk 0:03:04.4]}
30... b6 {[%clk 0:01:16]} 31. Rd5 {[%clk 0:03:02.2]} 31... c6 {[%clk 0:01:12.3]}
32. Rxd7 {[%clk 0:03:00.8]} 32... Rxd7 {[%clk 0:01:09.1]} 33. Re2 {[%clk
0:02:57.8]} 33... Kd8 {[%clk 0:01:03.7]} 34. Bxd7 {[%clk 0:02:56.8]} 34... Kxd7
{[%clk 0:01:02.4]} 35. Re6 {[%clk 0:02:56.1]} 35... h5 {[%clk 0:00:58.7]} 36.
Rxf6 {[%clk 0:02:54.4]} 36... h4 {[%clk 0:00:56.6]} 37. g4 {[%clk 0:02:53.2]}
37... c5 {[%clk 0:00:52.4]} 38. g5 {[%clk 0:02:51.9]} 38... Ke8 {[%clk
0:00:49.7]} 39. g6 {[%clk 0:02:50.8]} 39... Ke7 {[%clk 0:00:47.1]} 40. Ke5
{[%clk 0:02:50]} 40... Kd7 {[%clk 0:00:45.6]} 41. g7 {[%clk 0:02:49]} 41... Ke7
{[%clk 0:00:44.1]} 42. g8=Q {[%clk 0:02:47.4]} 42... Kd7 {[%clk 0:00:42.4]} 43.
Qg7+ {[%clk 0:02:44.8]} 43... Ke8 {[%clk 0:00:39.1]} 44. Rf8# {[%clk 0:02:43.8]}
1-0

[Event "Live Chess"]
[Site "Chess.com"]
[Date "2023.05.21"]
[Round "-"]
[White "Conradical12"]
[Black "WilliamofOrange16th"]
[Result "0-1"]
[WhiteElo "1517"]
[BlackElo "1851"]
[TimeControl "300"]
[EndTime "8:26:40 PDT"]
[Termination "WilliamofOrange16th won by checkmate"]

1. e4 {[%clk 0:04:57.7]} 1... d6 {[%clk 0:04:59.2]} 2. Nf3 {[%clk 0:04:56.7]}
2... Nf6 {[%clk 0:04:58.5]} 3. Nc3 {[%clk 0:04:54.2]} 3... e5 {[%clk 0:04:57.6]}
4. Bc4 {[%clk 0:04:53]} 4... Be7 {[%clk 0:04:56.5]} 5. d3 {[%clk 0:04:51.4]}
5... O-O {[%clk 0:04:55.4]} 6. Be3 {[%clk 0:04:50.8]} 6... c6 {[%clk 0:04:54.8]}
7. Qd2 {[%clk 0:04:50.4]} 7... Nbd7 {[%clk 0:04:53.9]} 8. O-O-O {[%clk
0:04:48.6]} 8... a5 {[%clk 0:04:52.7]} 9. d4 {[%clk 0:04:47.8]} 9... b5 {[%clk
0:04:50.8]} 10. Be2 {[%clk 0:04:46.3]} 10... b4 {[%clk 0:04:49.4]} 11. Na4
{[%clk 0:04:42.9]} 11... Nxe4 {[%clk 0:04:48.1]} 12. Qd3 {[%clk 0:04:40.9]}
12... d5 {[%clk 0:04:46.8]} 13. dxe5 {[%clk 0:04:39.2]} 13... Ba6 {[%clk
0:04:38.3]} 14. c4 {[%clk 0:04:34.3]} 14... Bxc4 {[%clk 0:04:34.1]} 15. Qc2
{[%clk 0:04:33.2]} 15... Bxe2 {[%clk 0:04:28.1]} 16. Qxe2 {[%clk 0:04:32]} 16...
Qc7 {[%clk 0:04:19.8]} 17. h4 {[%clk 0:04:25.8]} 17... Nxe5 {[%clk 0:04:12.6]}
18. Nxe5 {[%clk 0:04:22.9]} 18... Qxe5 {[%clk 0:04:11]} 19. Bd4 {[%clk
0:04:22.5]} 19... Qf4+ {[%clk 0:04:04.6]} 20. Be3 {[%clk 0:04:20.1]} 20... Qe5
{[%clk 0:03:45.6]} 21. h5 {[%clk 0:04:15.8]} 21... Bf6 {[%clk 0:03:41.5]} 22. h6
{[%clk 0:04:08.8]} 22... g6 {[%clk 0:03:40.2]} 23. Qf1 {[%clk 0:03:45.9]} 23...
c5 {[%clk 0:03:35.5]} 24. f4 {[%clk 0:03:40.8]} 24... Qe8 {[%clk 0:03:21]} 25.
b3 {[%clk 0:03:34.7]} 25... c4 {[%clk 0:03:15.4]} 26. f5 {[%clk 0:03:15.7]}
26... cxb3 {[%clk 0:03:14]} 27. axb3 {[%clk 0:03:12.2]} 27... Rc8+ {[%clk
0:03:12.4]} 28. Kb1 {[%clk 0:03:10.2]} 28... Nc3+ {[%clk 0:02:58]} 29. Nxc3
{[%clk 0:03:07.9]} 29... Rxc3 {[%clk 0:02:57.9]} 30. fxg6 {[%clk 0:03:02.6]}
30... Qe4+ {[%clk 0:02:55.1]} 31. Ka1 {[%clk 0:02:49.2]} 31... Rc1+ {[%clk
0:02:46.6]} 32. Ka2 {[%clk 0:02:46.3]} 32... Qc2# {[%clk 0:02:45.9]} 0-1

[Event "Live Chess"]
[Site "Chess.com"]
[Date "2023.05.21"]
[Round "-"]
[White "Crowded_House"]
[Black "DoYouLikeCurry"]
[Result "1-0"]
[WhiteElo "1617"]
[BlackElo "1450"]
[TimeControl "300"]
[EndTime "8:26:44 PDT"]
[Termination "Crowded_House won by resignation"]

1. d4 {[%clk 0:04:59.4]} 1... d5 {[%clk 0:04:58.8]} 2. Bg5 {[%clk 0:04:58.7]}
2... f6 {[%clk 0:04:55.1]} 3. Bh4 {[%clk 0:04:57.5]} 3... e6 {[%clk 0:04:35.8]}
4. e3 {[%clk 0:04:55.4]} 4... c5 {[%clk 0:04:33.6]} 5. c3 {[%clk 0:04:53.8]}
5... Nc6 {[%clk 0:04:32.2]} 6. Nf3 {[%clk 0:04:47.1]} 6... Qb6 {[%clk
0:04:31.1]} 7. Qb3 {[%clk 0:04:44.7]} 7... cxd4 {[%clk 0:04:28.1]} 8. Nxd4
{[%clk 0:04:36.8]} 8... Qxb3 {[%clk 0:04:25.6]} 9. Nxb3 {[%clk 0:04:34]} 9...
Bd7 {[%clk 0:04:24.9]} 10. Bd3 {[%clk 0:04:27.9]} 10... Rc8 {[%clk 0:04:19]} 11.
N1d2 {[%clk 0:04:26.3]} 11... Bd6 {[%clk 0:04:14.6]} 12. Bg3 {[%clk 0:04:22.2]}
12... Bxg3 {[%clk 0:04:12]} 13. hxg3 {[%clk 0:04:20.6]} 13... Nge7 {[%clk
0:04:11.7]} 14. O-O-O {[%clk 0:04:11.7]} 14... Ne5 {[%clk 0:04:09.3]} 15. Be2
{[%clk 0:04:08.9]} 15... Ba4 {[%clk 0:04:01.9]} 16. Nf3 {[%clk 0:04:05.2]} 16...
Nc4 {[%clk 0:03:51.3]} 17. Nfd2 {[%clk 0:03:50.7]} 17... Nxd2 {[%clk 0:03:48.4]}
18. Rxd2 {[%clk 0:03:47.2]} 18... Bxb3 {[%clk 0:03:47.6]} 19. axb3 {[%clk
0:03:45.9]} 19... b5 {[%clk 0:03:43.2]} 20. b4 {[%clk 0:03:41.2]} 20... a6
{[%clk 0:03:40.5]} 21. Bd3 {[%clk 0:03:34.4]} 21... O-O {[%clk 0:03:38.1]} 22.
Kc2 {[%clk 0:03:29.2]} 22... Nf5 {[%clk 0:03:35]} 23. Ra1 {[%clk 0:03:26.7]}
23... Ra8 {[%clk 0:03:32]} 24. Ra5 {[%clk 0:03:22.3]} 24... Rfc8 {[%clk
0:03:18.8]} 25. Kb3 {[%clk 0:03:02.4]} 25... Nh6 {[%clk 0:03:08]} 26. Be2 {[%clk
0:02:53.2]} 26... Nf5 {[%clk 0:03:05.1]} 27. Rd1 {[%clk 0:02:51.4]} 27... Kf7
{[%clk 0:03:01.2]} 28. Rda1 {[%clk 0:02:50]} 28... Rc6 {[%clk 0:02:58.2]} 29.
Bxb5 {[%clk 0:02:47.9]} 29... Rb6 {[%clk 0:02:31.6]} 30. Bxa6 {[%clk 0:02:32.5]}
30... Nd6 {[%clk 0:02:25.3]} 31. Bd3 {[%clk 0:02:30.9]} 31... Rxa5 {[%clk
0:02:22.6]} 32. Rxa5 {[%clk 0:02:30]} 32... Rc6 {[%clk 0:02:16.2]} 33. Ra6
{[%clk 0:02:23.6]} 33... Rxa6 {[%clk 0:02:10.8]} 34. Bxa6 {[%clk 0:02:21.7]}
34... Ke7 {[%clk 0:02:01.6]} 35. Bd3 {[%clk 0:02:18.8]} 35... Kd7 {[%clk
0:01:59.6]} 36. Ka4 {[%clk 0:02:16]} 36... g6 {[%clk 0:01:57.9]} 37. Ka5 {[%clk
0:02:14.8]} 37... Kc7 {[%clk 0:01:54.8]} 38. b5 {[%clk 0:02:10.5]} 38... Kb7
{[%clk 0:01:51.2]} 39. b4 {[%clk 0:02:03.6]} 39... f5 {[%clk 0:01:37.2]} 40. f3
{[%clk 0:02:00.4]} 40... Nc8 {[%clk 0:01:31.7]} 41. c4 {[%clk 0:01:56]} 41...
dxc4 {[%clk 0:01:29.6]} 42. Bxc4 {[%clk 0:01:54.1]} 42... e5 {[%clk 0:01:28.3]}
43. Bd5+ {[%clk 0:01:49.4]} 43... Ka7 {[%clk 0:01:25.4]} 44. e4 {[%clk
0:01:44.9]} 44... f4 {[%clk 0:01:22.2]} 45. gxf4 {[%clk 0:01:42.4]} 45... exf4
{[%clk 0:01:22.1]} 46. e5 {[%clk 0:01:40.2]} 46... Kb8 {[%clk 0:01:17.7]} 47. e6
{[%clk 0:01:39.2]} 47... Kc7 {[%clk 0:01:16]} 48. Ka6 {[%clk 0:01:35.6]} 48...
Ne7 {[%clk 0:01:11.6]} 49. b6+ {[%clk 0:01:33.5]} 49... Kb8 {[%clk 0:01:10.4]}
50. Be4 {[%clk 0:01:29.1]} 50... h6 {[%clk 0:01:05.4]} 51. Kb5 {[%clk 0:01:28]}
51... g5 {[%clk 0:01:03.5]} 52. Kc5 {[%clk 0:01:25.6]} 52... Kc8 {[%clk
0:01:01.9]} 53. Kd6 {[%clk 0:01:24.7]} 53... Kd8 {[%clk 0:01:00.2]} 54. b7
{[%clk 0:01:23.2]} 54... Nc8+ {[%clk 0:00:50]} 55. bxc8=Q+ {[%clk 0:01:21.5]}
55... Kxc8 {[%clk 0:00:49]} 56. e7 {[%clk 0:01:19.3]} 1-0

[Event "Live Chess"]
[Site "Chess.com"]
[Date "2023.05.21"]
[Round "-"]
[White "AttackingSnowLeopard"]
[Black "garyjc"]
[Result "1-0"]
[WhiteElo "2165"]
[BlackElo "1080"]
[TimeControl "300"]
[EndTime "8:26:44 PDT"]
[Termination "AttackingSnowLeopard won by resignation"]

1. d4 {[%clk 0:04:58.5]} 1... Nf6 {[%clk 0:04:56.9]} 2. c4 {[%clk 0:04:57.2]}
2... g6 {[%clk 0:04:56.2]} 3. Nc3 {[%clk 0:04:55.8]} 3... Bg7 {[%clk 0:04:55.5]}
4. e4 {[%clk 0:04:55]} 4... d6 {[%clk 0:04:54.6]} 5. Be2 {[%clk 0:04:54.2]} 5...
O-O {[%clk 0:04:53.6]} 6. Be3 {[%clk 0:04:53.7]} 6... Na6 {[%clk 0:04:42.3]} 7.
Nf3 {[%clk 0:04:51.1]} 7... Re8 {[%clk 0:04:35.8]} 8. O-O {[%clk 0:04:48.6]}
8... e5 {[%clk 0:04:34.4]} 9. dxe5 {[%clk 0:04:47.3]} 9... dxe5 {[%clk
0:04:30.1]} 10. Qxd8 {[%clk 0:04:46.8]} 10... Rxd8 {[%clk 0:04:28.7]} 11. Rfd1
{[%clk 0:04:46.5]} 11... Re8 {[%clk 0:04:26.8]} 12. c5 {[%clk 0:04:43.2]} 12...
Nb4 {[%clk 0:04:21.7]} 13. Rac1 {[%clk 0:04:39.4]} 13... b6 {[%clk 0:04:11.8]}
14. a3 {[%clk 0:04:35.3]} 14... Nc6 {[%clk 0:04:09.4]} 15. Bb5 {[%clk
0:04:32.8]} 15... Re6 {[%clk 0:04:01.4]} 16. Nd5 {[%clk 0:04:29]} 16... Nxd5
{[%clk 0:03:41.4]} 17. exd5 {[%clk 0:04:25.9]} 17... Rf6 {[%clk 0:03:37.6]} 18.
Bxc6 {[%clk 0:04:24.8]} 18... Rb8 {[%clk 0:03:26.4]} 19. d6 {[%clk 0:04:23.7]}
19... Bb7 {[%clk 0:03:24.7]} 20. Bxb7 {[%clk 0:04:22.2]} 20... Rxb7 {[%clk
0:03:23.6]} 21. d7 {[%clk 0:04:22.1]} 1-0